[Event "Early-Titled-Tuesday-Blitz-February-06-2024"]
[Site "Chess.com"]
[Date "2024.02.06"]
[Round "5"]
[White "Ranindu2003"]
[Black "nikitadovbnya2008"]
[Result "1-0"]
[WhiteElo "2725"]
[BlackElo "2271"]
[TimeControl "180+1"]
[EndTime "8:55:31 PST"]
[Termination "Ranindu2003 won by checkmate"]

1. Nf3 {[%clk 0:02:55.8]} 1... Nf6 {[%clk 0:02:59.6]} 2. b3 {[%clk 0:02:54.5]}
2... g6 {[%clk 0:02:59.7]} 3. Bb2 {[%clk 0:02:54.6]} 3... Bg7 {[%clk 0:03:00.6]}
4. g3 {[%clk 0:02:55.2]} 4... O-O {[%clk 0:03:00.8]} 5. Bg2 {[%clk 0:02:55.8]}
5... c6 {[%clk 0:03:01.3]} 6. c4 {[%clk 0:02:54.5]} 6... d5 {[%clk 0:03:01]} 7.
O-O {[%clk 0:02:54.9]} 7... Bf5 {[%clk 0:03:00]} 8. Nh4 {[%clk 0:02:44.5]} 8...
Be4 {[%clk 0:02:57.6]} 9. Bh3 {[%clk 0:02:34.9]} 9... Bxb1 {[%clk 0:02:43]} 10.
Rxb1 {[%clk 0:02:31.5]} 10... Nbd7 {[%clk 0:02:43.9]} 11. Nf3 {[%clk 0:02:30.3]}
11... Re8 {[%clk 0:02:36]} 12. cxd5 {[%clk 0:02:27.6]} 12... cxd5 {[%clk
0:02:36.9]} 13. Ne5 {[%clk 0:02:27.1]} 13... Nxe5 {[%clk 0:02:35.4]} 14. Bxe5
{[%clk 0:02:28]} 14... Nd7 {[%clk 0:02:33.2]} 15. Bxg7 {[%clk 0:02:17.8]} 15...
Kxg7 {[%clk 0:02:34.1]} 16. Bg2 {[%clk 0:02:17.6]} 16... e6 {[%clk 0:02:30.8]}
17. Qc2 {[%clk 0:02:12.2]} 17... Rc8 {[%clk 0:02:27.3]} 18. Qb2+ {[%clk
0:02:12.5]} 18... Qf6 {[%clk 0:02:21.8]} 19. Qa3 {[%clk 0:02:12.3]} 19... a6
{[%clk 0:02:01.2]} 20. Rbc1 {[%clk 0:02:12.3]} 20... Qd4 {[%clk 0:01:54.7]} 21.
Qd6 {[%clk 0:01:59.5]} 21... Nf6 {[%clk 0:01:52.1]} 22. d3 {[%clk 0:01:49.6]}
22... Qb2 {[%clk 0:01:46.1]} 23. Rxc8 {[%clk 0:01:34.9]} 23... Rxc8 {[%clk
0:01:44.9]} 24. Qb6 {[%clk 0:01:35.8]} 24... Qxe2 {[%clk 0:01:30.8]} 25. Qxb7
{[%clk 0:01:34.8]} 25... Rc2 {[%clk 0:01:29.3]} 26. Qxa6 {[%clk 0:01:29]} 26...
Rd2 {[%clk 0:01:21.9]} 27. h3 {[%clk 0:01:25.1]} 27... Rxa2 {[%clk 0:01:21.1]}
28. Qb5 {[%clk 0:01:24.4]} 28... Rd2 {[%clk 0:01:02.6]} 29. Qc5 {[%clk
0:01:21.7]} 29... Rxd3 {[%clk 0:00:55.4]} 30. b4 {[%clk 0:01:21.2]} 30... Qb2
{[%clk 0:00:52.5]} 31. Rc1 {[%clk 0:01:05.5]} 31... Rb3 {[%clk 0:00:41.2]} 32.
Rc2 {[%clk 0:01:00.1]} 32... Qa1+ {[%clk 0:00:35.3]} 33. Kh2 {[%clk 0:00:57.5]}
33... Qa4 {[%clk 0:00:23.4]} 34. Qe7 {[%clk 0:00:56.8]} 34... Qxb4 {[%clk
0:00:19.7]} 35. Qd8 {[%clk 0:00:57]} 35... Rb1 {[%clk 0:00:16.5]} 36. Rc8 {[%clk
0:00:56.1]} 36... g5 {[%clk 0:00:11.9]} 37. f4 {[%clk 0:00:26.6]} 37... Qe1
{[%clk 0:00:08.3]} 38. Qh8+ {[%clk 0:00:22.3]} 38... Kg6 {[%clk 0:00:06.8]} 39.
Rg8+ {[%clk 0:00:22.9]} 39... Nxg8 {[%clk 0:00:06.4]} 40. Qxg8+ {[%clk
0:00:23.8]} 40... Kf5 {[%clk 0:00:07.1]} 41. Qxg5# {[%clk 0:00:24.4]} 1-0

[Event "Early-Titled-Tuesday-Blitz-February-06-2024"]
[Site "Chess.com"]
[Date "2024.02.06"]
[Round "5"]
[White "ama18"]
[Black "margarita_2703"]
[Result "1-0"]
[WhiteElo "2542"]
[BlackElo "2344"]
[TimeControl "180+1"]
[EndTime "8:55:31 PST"]
[Termination "ama18 won by checkmate"]

1. Nf3 {[%clk 0:02:57]} 1... d5 {[%clk 0:02:59.9]} 2. g3 {[%clk 0:02:57]} 2...
Nf6 {[%clk 0:02:59.6]} 3. Bg2 {[%clk 0:02:55.6]} 3... e6 {[%clk 0:02:59.9]} 4.
b3 {[%clk 0:02:55.7]} 4... Be7 {[%clk 0:03:00.8]} 5. O-O {[%clk 0:02:56.1]} 5...
O-O {[%clk 0:03:01.7]} 6. Bb2 {[%clk 0:02:56.7]} 6... b6 {[%clk 0:03:01.3]} 7.
d4 {[%clk 0:02:57.6]} 7... Bb7 {[%clk 0:03:01.7]} 8. Ne5 {[%clk 0:02:58.2]} 8...
c5 {[%clk 0:03:00.8]} 9. c4 {[%clk 0:02:58.4]} 9... Nbd7 {[%clk 0:02:57.1]} 10.
Nxd7 {[%clk 0:02:55.4]} 10... Qxd7 {[%clk 0:02:56.3]} 11. dxc5 {[%clk
0:02:55.7]} 11... bxc5 {[%clk 0:02:55.2]} 12. cxd5 {[%clk 0:02:55.1]} 12... Bxd5
{[%clk 0:02:51.3]} 13. Nc3 {[%clk 0:02:53.2]} 13... Bxg2 {[%clk 0:02:48.6]} 14.
Qxd7 {[%clk 0:02:52.5]} 14... Nxd7 {[%clk 0:02:47.9]} 15. Kxg2 {[%clk
0:02:53.4]} 15... Bf6 {[%clk 0:02:44.5]} 16. Na4 {[%clk 0:02:53]} 16... Bxb2
{[%clk 0:02:43.6]} 17. Nxb2 {[%clk 0:02:53.9]} 17... Nb6 {[%clk 0:02:42.2]} 18.
Rac1 {[%clk 0:02:54]} 18... Rfd8 {[%clk 0:02:38.5]} 19. Rc2 {[%clk 0:02:54.1]}
19... h6 {[%clk 0:02:33.3]} 20. Rfc1 {[%clk 0:02:54]} 20... Rac8 {[%clk
0:02:31.7]} 21. Nd3 {[%clk 0:02:52.6]} 21... Nd7 {[%clk 0:02:25.6]} 22. Nxc5
{[%clk 0:02:47]} 22... Nxc5 {[%clk 0:02:24.7]} 23. Rxc5 {[%clk 0:02:47.9]} 23...
Rxc5 {[%clk 0:02:25.5]} 24. Rxc5 {[%clk 0:02:48.6]} 24... Rd2 {[%clk 0:02:25.6]}
25. Ra5 {[%clk 0:02:47.3]} 25... Rxe2 {[%clk 0:02:24.4]} 26. Rxa7 {[%clk
0:02:46.8]} 26... Rb2 {[%clk 0:02:24.4]} 27. Ra4 {[%clk 0:02:43.1]} 27... e5
{[%clk 0:02:22.4]} 28. Kf3 {[%clk 0:02:43.3]} 28... f5 {[%clk 0:02:21.7]} 29. b4
{[%clk 0:02:31.7]} 29... g5 {[%clk 0:02:19.6]} 30. h3 {[%clk 0:02:30.4]} 30...
h5 {[%clk 0:02:19.4]} 31. Ra8+ {[%clk 0:02:25]} 31... Kf7 {[%clk 0:02:17.5]} 32.
Ra7+ {[%clk 0:02:25.4]} 32... Ke6 {[%clk 0:02:16.8]} 33. Ra6+ {[%clk 0:02:25.7]}
33... Kd5 {[%clk 0:02:16.9]} 34. Ra5+ {[%clk 0:02:25.9]} 34... Kd4 {[%clk
0:02:16.4]} 35. Kg2 {[%clk 0:01:51.5]} 35... e4 {[%clk 0:02:14.1]} 36. Rxf5
{[%clk 0:01:49.3]} 36... Rxb4 {[%clk 0:02:10.6]} 37. Rxg5 {[%clk 0:01:48.1]}
37... Rb2 {[%clk 0:02:09]} 38. Kg1 {[%clk 0:01:44.9]} 38... h4 {[%clk
0:02:07.1]} 39. gxh4 {[%clk 0:01:42.3]} 39... Rxa2 {[%clk 0:02:07.3]} 40. h5
{[%clk 0:01:40.8]} 40... Ra1+ {[%clk 0:02:07.5]} 41. Kg2 {[%clk 0:01:40.8]}
41... Ra2 {[%clk 0:02:08.4]} 42. Kg3 {[%clk 0:01:41.2]} 42... Ra3+ {[%clk
0:02:08]} 43. Kg4 {[%clk 0:01:40.6]} 43... e3 {[%clk 0:02:02.8]} 44. fxe3+
{[%clk 0:01:40.4]} 44... Ke4 {[%clk 0:02:01.9]} 45. Rf5 {[%clk 0:01:38.1]} 45...
Ra1 {[%clk 0:02:00]} 46. Kg5 {[%clk 0:01:28.8]} 46... Rh1 {[%clk 0:01:52.5]} 47.
Rf4+ {[%clk 0:01:17.8]} 47... Ke5 {[%clk 0:01:52.7]} 48. h4 {[%clk 0:00:57.9]}
48... Rg1+ {[%clk 0:01:48.4]} 49. Rg4 {[%clk 0:00:57.8]} 49... Ra1 {[%clk
0:01:46.9]} 50. h6 {[%clk 0:00:56.4]} 50... Ra7 {[%clk 0:01:41.4]} 51. Rf4
{[%clk 0:00:44.8]} 51... Rd7 {[%clk 0:01:31.6]} 52. Kg6 {[%clk 0:00:44.7]} 52...
Rd6+ {[%clk 0:01:31]} 53. Kg7 {[%clk 0:00:45.1]} 53... Rd7+ {[%clk 0:01:25]} 54.
Rf7 {[%clk 0:00:42.3]} 54... Rd1 {[%clk 0:01:17.6]} 55. h7 {[%clk 0:00:41.6]}
55... Rg1+ {[%clk 0:01:18.1]} 56. Kh6 {[%clk 0:00:41.3]} 56... Ke6 {[%clk
0:01:16.6]} 57. Rf4 {[%clk 0:00:36.2]} 57... Rg4 {[%clk 0:01:01.3]} 58. Rxg4
{[%clk 0:00:29.3]} 58... Kf7 {[%clk 0:00:58.5]} 59. h8=Q {[%clk 0:00:28.8]}
59... Ke6 {[%clk 0:00:58.5]} 60. Rg6+ {[%clk 0:00:29]} 60... Kf5 {[%clk
0:00:58.7]} 61. Qf6+ {[%clk 0:00:28.8]} 61... Ke4 {[%clk 0:00:59.6]} 62. Rg4+
{[%clk 0:00:28.4]} 62... Kd3 {[%clk 0:01:00.5]} 63. Qd4+ {[%clk 0:00:28.2]}
63... Ke2 {[%clk 0:01:01.4]} 64. Rg2+ {[%clk 0:00:28.4]} 64... Kf3 {[%clk
0:01:01.7]} 65. Rd2 {[%clk 0:00:28.2]} 65... Kg3 {[%clk 0:01:01.6]} 66. Qf4+
{[%clk 0:00:28.4]} 66... Kh3 {[%clk 0:01:01.8]} 67. Rh2# {[%clk 0:00:29.1]} 1-0

[Event "Early-Titled-Tuesday-Blitz-February-06-2024"]
[Site "Chess.com"]
[Date "2024.02.06"]
[Round "5"]
[White "skkeyan1309"]
[Black "Actuary44"]
[Result "1-0"]
[WhiteElo "2716"]
[BlackElo "2485"]
[TimeControl "180+1"]
[EndTime "8:55:32 PST"]
[Termination "skkeyan1309 won by checkmate"]

1. Nf3 {[%clk 0:02:56.2]} 1... d6 {[%clk 0:02:59.5]} 2. e4 {[%clk 0:02:54.4]}
2... c5 {[%clk 0:02:59.6]} 3. Bb5+ {[%clk 0:02:52.1]} 3... Bd7 {[%clk
0:02:58.8]} 4. a4 {[%clk 0:02:52.3]} 4... Nc6 {[%clk 0:02:57.8]} 5. O-O {[%clk
0:02:51.5]} 5... e5 {[%clk 0:02:56.9]} 6. c3 {[%clk 0:02:51.1]} 6... Be7 {[%clk
0:02:51.4]} 7. d4 {[%clk 0:02:50.5]} 7... cxd4 {[%clk 0:02:49.3]} 8. cxd4 {[%clk
0:02:51.4]} 8... exd4 {[%clk 0:02:49.5]} 9. Nxd4 {[%clk 0:02:51.1]} 9... Nxd4
{[%clk 0:02:47.4]} 10. Qxd4 {[%clk 0:02:52]} 10... Nf6 {[%clk 0:02:44]} 11. Nc3
{[%clk 0:02:51.1]} 11... O-O {[%clk 0:02:43.5]} 12. Bf4 {[%clk 0:02:51.1]} 12...
Be6 {[%clk 0:02:33]} 13. Rfd1 {[%clk 0:02:49.7]} 13... Qa5 {[%clk 0:02:23.4]}
14. b4 {[%clk 0:02:47.9]} 14... Qd8 {[%clk 0:02:08.3]} 15. Bxd6 {[%clk
0:02:46.8]} 15... Rc8 {[%clk 0:02:01]} 16. e5 {[%clk 0:02:43.9]} 16... Bxd6
{[%clk 0:01:51.8]} 17. exd6 {[%clk 0:02:42.2]} 17... a6 {[%clk 0:01:46.4]} 18.
Be2 {[%clk 0:02:40.8]} 18... Nd7 {[%clk 0:01:42.7]} 19. Bf3 {[%clk 0:02:36]}
19... Rc4 {[%clk 0:01:35.8]} 20. Qe3 {[%clk 0:02:34.6]} 20... Rxb4 {[%clk
0:01:35.9]} 21. Rab1 {[%clk 0:02:29.7]} 21... Rxb1 {[%clk 0:01:33.3]} 22. Rxb1
{[%clk 0:02:29.3]} 22... b6 {[%clk 0:01:31.6]} 23. Nd5 {[%clk 0:02:23.1]} 23...
Bxd5 {[%clk 0:01:27.9]} 24. Bxd5 {[%clk 0:02:24]} 24... Qf6 {[%clk 0:01:22.9]}
25. Rd1 {[%clk 0:02:13.3]} 25... g6 {[%clk 0:01:13.6]} 26. Qe7 {[%clk 0:02:05]}
26... Qf5 {[%clk 0:00:45.6]} 27. Be4 {[%clk 0:02:02.1]} 27... Qh5 {[%clk
0:00:40.8]} 28. Bf3 {[%clk 0:01:58.7]} 28... Qf5 {[%clk 0:00:39.4]} 29. h3
{[%clk 0:01:56.6]} 29... Ne5 {[%clk 0:00:36.2]} 30. Bg4 {[%clk 0:01:49.6]} 30...
Nxg4 {[%clk 0:00:32.9]} 31. hxg4 {[%clk 0:01:50.5]} 31... Qxg4 {[%clk
0:00:33.5]} 32. Rc1 {[%clk 0:01:45.7]} 32... Qf4 {[%clk 0:00:21.4]} 33. Re1
{[%clk 0:01:35]} 33... Kg7 {[%clk 0:00:15.9]} 34. d7 {[%clk 0:01:33.4]} 34...
Qb8 {[%clk 0:00:14.5]} 35. Rd1 {[%clk 0:01:28.8]} 35... Rd8 {[%clk 0:00:14.2]}
36. Rc1 {[%clk 0:01:23.9]} 36... b5 {[%clk 0:00:10.8]} 37. axb5 {[%clk
0:01:17.6]} 37... axb5 {[%clk 0:00:11.7]} 38. Rd1 {[%clk 0:00:47]} 38... b4
{[%clk 0:00:10.8]} 39. Rd3 {[%clk 0:00:44.3]} 39... Qc7 {[%clk 0:00:07.8]} 40.
Rf3 {[%clk 0:00:28.1]} 40... Kh6 {[%clk 0:00:03.6]} 41. Rxf7 {[%clk 0:00:27.7]}
41... b3 {[%clk 0:00:01.7]} 42. Rxh7# {[%clk 0:00:27.3]} 1-0

[Event "Early-Titled-Tuesday-Blitz-February-06-2024"]
[Site "Chess.com"]
[Date "2024.02.06"]
[Round "5"]
[White "KbzasDavid16"]
[Black "DonMicheleCorleone"]
[Result "0-1"]
[WhiteElo "2550"]
[BlackElo "2427"]
[TimeControl "180+1"]
[EndTime "8:55:32 PST"]
[Termination "DonMicheleCorleone won on time"]

1. d4 {[%clk 0:02:57.3]} 1... d5 {[%clk 0:02:59.1]} 2. Nf3 {[%clk 0:02:56.6]}
2... Bf5 {[%clk 0:02:58.1]} 3. g3 {[%clk 0:02:57.5]} 3... e6 {[%clk 0:02:56.8]}
4. c4 {[%clk 0:02:57.9]} 4... c6 {[%clk 0:02:56.7]} 5. Nc3 {[%clk 0:02:58.1]}
5... Nf6 {[%clk 0:02:56.4]} 6. Nh4 {[%clk 0:02:58.7]} 6... Be4 {[%clk
0:02:55.2]} 7. f3 {[%clk 0:02:59.1]} 7... Bg6 {[%clk 0:02:55.3]} 8. Qb3 {[%clk
0:02:58.5]} 8... Qb6 {[%clk 0:02:54.8]} 9. c5 {[%clk 0:02:58.7]} 9... Qxb3
{[%clk 0:02:54.9]} 10. axb3 {[%clk 0:02:59.6]} 10... Nbd7 {[%clk 0:02:52.5]} 11.
Nxg6 {[%clk 0:02:59.1]} 11... hxg6 {[%clk 0:02:52.2]} 12. b4 {[%clk 0:03:00]}
12... e5 {[%clk 0:02:49.4]} 13. e3 {[%clk 0:03:00.1]} 13... b5 {[%clk
0:02:23.3]} 14. cxb6 {[%clk 0:02:25.9]} 14... Nxb6 {[%clk 0:02:22.9]} 15. b5
{[%clk 0:02:23.3]} 15... exd4 {[%clk 0:02:21.6]} 16. exd4 {[%clk 0:02:21.5]}
16... c5 {[%clk 0:02:20.2]} 17. Be3 {[%clk 0:02:14.4]} 17... c4 {[%clk
0:02:18.8]} 18. Kf2 {[%clk 0:01:55.6]} 18... Bd6 {[%clk 0:02:12.5]} 19. h4
{[%clk 0:01:34]} 19... Kd7 {[%clk 0:02:11]} 20. Bh3+ {[%clk 0:01:33.6]} 20...
Kc7 {[%clk 0:02:10.9]} 21. Ra6 {[%clk 0:01:24.5]} 21... Nh5 {[%clk 0:02:01.3]}
22. f4 {[%clk 0:01:12.1]} 22... f5 {[%clk 0:01:54.9]} 23. Rha1 {[%clk
0:01:07.3]} 23... Kb7 {[%clk 0:01:54.9]} 24. Na4 {[%clk 0:00:56.9]} 24... Nf6
{[%clk 0:01:52.9]} 25. Nc5+ {[%clk 0:00:52.1]} 25... Kb8 {[%clk 0:01:48.3]} 26.
Ne6 {[%clk 0:00:24.6]} 26... Re8 {[%clk 0:01:38.2]} 27. Nxg7 {[%clk 0:00:22.8]}
27... Re7 {[%clk 0:01:38.5]} 28. Nxf5 {[%clk 0:00:20.3]} 28... Ne4+ {[%clk
0:01:33.2]} 29. Kf3 {[%clk 0:00:17.4]} 29... gxf5 {[%clk 0:01:33.3]} 30. Bxf5
{[%clk 0:00:18.3]} 30... Nxg3 {[%clk 0:01:30.5]} 31. Bg6 {[%clk 0:00:14.6]}
31... Ne4 {[%clk 0:01:19.6]} 32. h5 {[%clk 0:00:12.2]} 32... Rb7 {[%clk
0:00:57.2]} 33. h6 {[%clk 0:00:08.5]} 33... Bf8 {[%clk 0:00:53.3]} 34. f5 {[%clk
0:00:07.5]} 34... Kc7 {[%clk 0:00:50.4]} 35. Bf4+ {[%clk 0:00:06.4]} 35... Nd6
{[%clk 0:00:50.3]} 36. Re1 {[%clk 0:00:03.2]} 36... Kd7 {[%clk 0:00:44.4]} 37.
h7 {[%clk 0:00:02.8]} 37... Bg7 {[%clk 0:00:44.2]} 38. Bg5 {[%clk 0:00:02.6]}
38... Ne4 {[%clk 0:00:39.2]} 39. Bh4 {[%clk 0:00:02.1]} 39... Bxd4 {[%clk
0:00:38.2]} 40. Rd1 {[%clk 0:00:01.9]} 40... Bxb2 {[%clk 0:00:35.2]} 41. Kf4
{[%clk 0:00:01.5]} 41... Bf6 {[%clk 0:00:24.6]} 0-1

[Event "Early-Titled-Tuesday-Blitz-February-06-2024"]
[Site "Chess.com"]
[Date "2024.02.06"]
[Round "5"]
[White "SmirnovTimofey2000"]
[Black "Karttunen"]
[Result "0-1"]
[WhiteElo "1980"]
[BlackElo "2668"]
[TimeControl "180+1"]
[EndTime "8:55:33 PST"]
[Termination "Karttunen won on time"]

1. e4 {[%clk 0:02:41]} 1... e5 {[%clk 0:02:59.1]} 2. Nf3 {[%clk 0:02:40.8]} 2...
Nc6 {[%clk 0:02:59.1]} 3. Bc4 {[%clk 0:02:40.8]} 3... Bc5 {[%clk 0:02:58.7]} 4.
b4 {[%clk 0:02:40.6]} 4... Bxb4 {[%clk 0:02:57.5]} 5. c3 {[%clk 0:02:40.9]} 5...
Be7 {[%clk 0:02:57]} 6. d4 {[%clk 0:02:40.6]} 6... Na5 {[%clk 0:02:51.8]} 7.
Nxe5 {[%clk 0:02:15.7]} 7... Nxc4 {[%clk 0:02:51.1]} 8. Nxc4 {[%clk 0:02:16.6]}
8... d5 {[%clk 0:02:51.1]} 9. Ncd2 {[%clk 0:02:01.8]} 9... Nf6 {[%clk
0:02:10.6]} 10. e5 {[%clk 0:01:52.9]} 10... Nd7 {[%clk 0:02:10.4]} 11. O-O
{[%clk 0:01:52.8]} 11... O-O {[%clk 0:02:10.1]} 12. f4 {[%clk 0:01:52.3]} 12...
f5 {[%clk 0:02:08.3]} 13. Ba3 {[%clk 0:01:44]} 13... Nb6 {[%clk 0:02:02.5]} 14.
Qb3 {[%clk 0:01:39.8]} 14... Be6 {[%clk 0:01:58.9]} 15. Bxe7 {[%clk 0:01:31.5]}
15... Qxe7 {[%clk 0:01:58.2]} 16. Nf3 {[%clk 0:01:26.1]} 16... h6 {[%clk
0:01:56.8]} 17. Nbd2 {[%clk 0:01:25.6]} 17... c5 {[%clk 0:01:54.8]} 18. Rab1
{[%clk 0:01:21.7]} 18... c4 {[%clk 0:01:46.5]} 19. Qb4 {[%clk 0:01:15]} 19...
Qd7 {[%clk 0:01:35.8]} 20. Nh4 {[%clk 0:01:05.7]} 20... Kh7 {[%clk 0:01:35]} 21.
Rf3 {[%clk 0:01:02.2]} 21... g5 {[%clk 0:01:23]} 22. Nxf5 {[%clk 0:00:44.9]}
22... Rxf5 {[%clk 0:01:17.2]} 23. fxg5 {[%clk 0:00:43.5]} 23... Rxg5 {[%clk
0:01:15.4]} 24. Rbf1 {[%clk 0:00:37.6]} 24... Rag8 {[%clk 0:01:14.6]} 25. g3
{[%clk 0:00:30.7]} 25... Nc8 {[%clk 0:01:01.1]} 26. Rf8 {[%clk 0:00:19.3]} 26...
Rxf8 {[%clk 0:00:43.8]} 27. Qxf8 {[%clk 0:00:18.5]} 27... Rg8 {[%clk 0:00:41.6]}
28. Qb4 {[%clk 0:00:14.3]} 28... Qe7 {[%clk 0:00:39.7]} 29. Qb1+ {[%clk
0:00:11.8]} 29... Rg6 {[%clk 0:00:21.6]} 30. Nf3 {[%clk 0:00:11.4]} 30... Kg7
{[%clk 0:00:20]} 31. Nh4 {[%clk 0:00:11.4]} 31... Qxh4 {[%clk 0:00:19.2]} 32.
Qxb7+ {[%clk 0:00:09.2]} 32... Qe7 {[%clk 0:00:18.5]} 33. Qb1 {[%clk 0:00:06.6]}
33... h5 {[%clk 0:00:18.1]} 34. Qd1 {[%clk 0:00:03.9]} 34... h4 {[%clk
0:00:18.1]} 35. Qh5 {[%clk 0:00:03.7]} 35... hxg3 {[%clk 0:00:18.2]} 36. Rf6
{[%clk 0:00:02.2]} 36... Rxf6 {[%clk 0:00:17.7]} 37. exf6+ {[%clk 0:00:03]}
37... Qxf6 {[%clk 0:00:18.2]} 38. Qg4+ {[%clk 0:00:03.1]} 38... Bxg4 {[%clk
0:00:18.2]} 0-1

[Event "Early-Titled-Tuesday-Blitz-February-06-2024"]
[Site "Chess.com"]
[Date "2024.02.06"]
[Round "5"]
[White "NEPHILIM-SLAYER"]
[Black "secrethawk1"]
[Result "1-0"]
[WhiteElo "2746"]
[BlackElo "2502"]
[TimeControl "180+1"]
[EndTime "8:55:34 PST"]
[Termination "NEPHILIM-SLAYER won by checkmate"]

1. Nf3 {[%clk 0:02:57.9]} 1... Nf6 {[%clk 0:02:53.2]} 2. c4 {[%clk 0:02:56.1]}
2... c6 {[%clk 0:02:52.2]} 3. Nc3 {[%clk 0:02:56.4]} 3... d5 {[%clk 0:02:53.1]}
4. e3 {[%clk 0:02:56.6]} 4... e6 {[%clk 0:02:52.7]} 5. b3 {[%clk 0:02:56.6]}
5... Bd6 {[%clk 0:02:51.5]} 6. Bb2 {[%clk 0:02:55.9]} 6... O-O {[%clk
0:02:51.5]} 7. Be2 {[%clk 0:02:56.2]} 7... Nbd7 {[%clk 0:02:50.7]} 8. d4 {[%clk
0:02:56.1]} 8... b6 {[%clk 0:02:30.9]} 9. O-O {[%clk 0:02:55.1]} 9... Bb7 {[%clk
0:02:29]} 10. Rc1 {[%clk 0:02:55.6]} 10... Re8 {[%clk 0:02:27.6]} 11. Re1 {[%clk
0:02:51.9]} 11... a5 {[%clk 0:02:23.2]} 12. Bf1 {[%clk 0:02:50.9]} 12... Rc8
{[%clk 0:02:20.9]} 13. g3 {[%clk 0:02:47.1]} 13... Ne4 {[%clk 0:02:16.5]} 14.
Nxe4 {[%clk 0:02:24.9]} 14... dxe4 {[%clk 0:02:17.4]} 15. Nd2 {[%clk 0:02:25.6]}
15... f5 {[%clk 0:02:16.5]} 16. Bg2 {[%clk 0:02:25.8]} 16... Nf6 {[%clk
0:02:11.9]} 17. c5 {[%clk 0:02:21.2]} 17... Bc7 {[%clk 0:01:51.8]} 18. cxb6
{[%clk 0:02:16.3]} 18... Bxb6 {[%clk 0:01:52.7]} 19. Nc4 {[%clk 0:02:16.9]}
19... Bc7 {[%clk 0:01:50.6]} 20. Ba3 {[%clk 0:02:02.2]} 20... Nd5 {[%clk
0:01:45.7]} 21. Qd2 {[%clk 0:02:01.3]} 21... Ba6 {[%clk 0:01:37.3]} 22. Bc5
{[%clk 0:01:58.9]} 22... a4 {[%clk 0:01:20.2]} 23. b4 {[%clk 0:01:51.2]} 23...
Rb8 {[%clk 0:01:06.1]} 24. a3 {[%clk 0:01:49]} 24... Qf6 {[%clk 0:00:52]} 25.
Bd6 {[%clk 0:01:39]} 25... Bb5 {[%clk 0:00:47.8]} 26. Bxc7 {[%clk 0:01:38]}
26... Nxc7 {[%clk 0:00:48.7]} 27. Ne5 {[%clk 0:01:34]} 27... Nd5 {[%clk
0:00:26.5]} 28. Nd7 {[%clk 0:01:25.3]} 28... Qe7 {[%clk 0:00:23.7]} 29. Nxb8
{[%clk 0:01:25.6]} 29... Rxb8 {[%clk 0:00:24.5]} 30. Bf1 {[%clk 0:01:23.2]}
30... Qg5 {[%clk 0:00:18.3]} 31. Rc5 {[%clk 0:01:20.5]} 31... Bxf1 {[%clk
0:00:08.4]} 32. Rxf1 {[%clk 0:01:21.4]} 32... Qg4 {[%clk 0:00:05.4]} 33. Qd1
{[%clk 0:01:20.6]} 33... Qh3 {[%clk 0:00:05]} 34. Rxc6 {[%clk 0:01:11.2]} 34...
Nf6 {[%clk 0:00:04.6]} 35. f3 {[%clk 0:01:04.6]} 35... exf3 {[%clk 0:00:04.2]}
36. Qxf3 {[%clk 0:01:05.2]} 36... Ng4 {[%clk 0:00:04.3]} 37. Rc2 {[%clk
0:01:01.7]} 37... g6 {[%clk 0:00:02.6]} 38. Rfc1 {[%clk 0:01:00]} 38... h6
{[%clk 0:00:02.3]} 39. Rc8+ {[%clk 0:00:57]} 39... Rxc8 {[%clk 0:00:02.7]} 40.
Rxc8+ {[%clk 0:00:57.2]} 40... Kf7 {[%clk 0:00:02.8]} 41. Rc7+ {[%clk
0:00:49.5]} 41... Kf6 {[%clk 0:00:02.6]} 42. Rc2 {[%clk 0:00:44.8]} 42... Kg5
{[%clk 0:00:02]} 43. e4 {[%clk 0:00:40.1]} 43... fxe4 {[%clk 0:00:01.7]} 44.
Qxe4 {[%clk 0:00:34.3]} 44... Kh5 {[%clk 0:00:02.3]} 45. Qxe6 {[%clk 0:00:30.7]}
45... g5 {[%clk 0:00:01.8]} 46. Qf7# {[%clk 0:00:30.5]} 1-0

[Event "Early-Titled-Tuesday-Blitz-February-06-2024"]
[Site "Chess.com"]
[Date "2024.02.06"]
[Round "5"]
[White "ReinisUz"]
[Black "IsaqueGoncalvesSanto"]
[Result "1/2-1/2"]
[WhiteElo "2341"]
[BlackElo "1858"]
[TimeControl "180+1"]
[EndTime "8:55:34 PST"]
[Termination "Game drawn by repetition"]

1. c4 {[%clk 0:03:00.9]} 1... e6 {[%clk 0:02:56]} 2. Nc3 {[%clk 0:02:59.7]} 2...
d5 {[%clk 0:02:56.4]} 3. d4 {[%clk 0:03:00.2]} 3... c6 {[%clk 0:02:56.1]} 4. Nf3
{[%clk 0:02:59.2]} 4... dxc4 {[%clk 0:02:56.1]} 5. e4 {[%clk 0:02:58.8]} 5... b5
{[%clk 0:02:56.1]} 6. a4 {[%clk 0:02:59.2]} 6... Bb4 {[%clk 0:02:54.4]} 7. Bd2
{[%clk 0:02:55.7]} 7... Nf6 {[%clk 0:02:52.1]} 8. axb5 {[%clk 0:02:55.3]} 8...
Bxc3 {[%clk 0:02:52]} 9. Bxc3 {[%clk 0:02:53.1]} 9... cxb5 {[%clk 0:02:51.8]}
10. Qc2 {[%clk 0:02:49.1]} 10... Bb7 {[%clk 0:02:50.7]} 11. Nd2 {[%clk
0:02:43.2]} 11... a5 {[%clk 0:02:49.2]} 12. b4 {[%clk 0:02:26.7]} 12... a4
{[%clk 0:02:43.9]} 13. f3 {[%clk 0:02:24.6]} 13... O-O {[%clk 0:02:42.9]} 14.
Be2 {[%clk 0:02:24.1]} 14... Nbd7 {[%clk 0:02:41.5]} 15. O-O {[%clk 0:02:23.6]}
15... Qb6 {[%clk 0:02:38.9]} 16. Nb1 {[%clk 0:02:22.1]} 16... e5 {[%clk
0:02:38.2]} 17. Rd1 {[%clk 0:02:19.8]} 17... Rad8 {[%clk 0:02:20.7]} 18. Kh1
{[%clk 0:02:18.9]} 18... exd4 {[%clk 0:02:20.3]} 19. Bxd4 {[%clk 0:02:19.8]}
19... Qc7 {[%clk 0:02:10.7]} 20. Nc3 {[%clk 0:02:19.4]} 20... Bc6 {[%clk
0:02:04.5]} 21. Rd2 {[%clk 0:02:12.3]} 21... Ne5 {[%clk 0:01:57.8]} 22. Rad1
{[%clk 0:02:07.9]} 22... Ng6 {[%clk 0:01:54.6]} 23. Bxf6 {[%clk 0:01:54.7]}
23... Rxd2 {[%clk 0:01:51]} 24. Rxd2 {[%clk 0:01:48.3]} 24... gxf6 {[%clk
0:01:50.4]} 25. Nd5 {[%clk 0:01:48.5]} 25... Qe5 {[%clk 0:01:26]} 26. g3 {[%clk
0:01:34.5]} 26... f5 {[%clk 0:01:20.9]} 27. Qc3 {[%clk 0:01:06.9]} 27... fxe4
{[%clk 0:01:18.7]} 28. Qxe5 {[%clk 0:01:04.2]} 28... Nxe5 {[%clk 0:01:18.1]} 29.
fxe4 {[%clk 0:01:03.7]} 29... f5 {[%clk 0:01:13.9]} 30. Ne7+ {[%clk 0:00:49.4]}
30... Kf7 {[%clk 0:01:13.5]} 31. Nxc6 {[%clk 0:00:46.7]} 31... Nxc6 {[%clk
0:01:13.3]} 32. exf5 {[%clk 0:00:47.1]} 32... Nxb4 {[%clk 0:01:10.3]} 33. Rd7+
{[%clk 0:00:42.2]} 33... Kf6 {[%clk 0:01:09.5]} 34. Rb7 {[%clk 0:00:42.7]} 34...
Re8 {[%clk 0:00:47.7]} 35. Rb6+ {[%clk 0:00:33.7]} 35... Kxf5 {[%clk 0:00:46.5]}
36. Rxb5+ {[%clk 0:00:33.4]} 36... Re5 {[%clk 0:00:41.3]} 37. Bg4+ {[%clk
0:00:26.4]} 37... Ke4 {[%clk 0:00:40.6]} 38. Rxb4 {[%clk 0:00:24.8]} 38... Kd3
{[%clk 0:00:39.4]} 39. Rxa4 {[%clk 0:00:18.7]} 39... c3 {[%clk 0:00:37.7]} 40.
Ra8 {[%clk 0:00:14.9]} 40... c2 {[%clk 0:00:37]} 41. Rd8+ {[%clk 0:00:14.5]}
41... Kc3 {[%clk 0:00:30]} 42. Rc8+ {[%clk 0:00:14.2]} 42... Kb2 {[%clk
0:00:29.6]} 43. Rb8+ {[%clk 0:00:14.2]} 43... Ka3 {[%clk 0:00:25.8]} 44. Rc8
{[%clk 0:00:14]} 44... Kb2 {[%clk 0:00:25.3]} 45. Rb8+ {[%clk 0:00:14.4]} 45...
Ka3 {[%clk 0:00:19.7]} 46. Rc8 {[%clk 0:00:14.5]} 46... Kb2 {[%clk 0:00:19.5]}
1/2-1/2